bitfinex/quotes_SOLUSD_20250822
["timestamp","ask_amount","ask_price","bid_price","bid_amount"]
[1755886974500,8.60255734,196.28,196.22,3.80793907]
[1755886974799,8.60255734,196.28,196.23,3.80793907]
[1755886974800,13.59559401,196.28,196.23,3.80793907]
[1755886974999,8.60255734,196.27,196.24,3.80793907]
[1755886975315,8.91255734,196.27,196.25,3.80793907]
[1755886975474,8.60255734,196.27,196.26,3.80793907]
[1755886975676,13.59559401,196.28,196.26,3.80793907]
[1755886975897,13.59559401,196.28,196.27,3.80896103]
[1755886976090,0.31,196.27,196.22,8.60255734]
[1755886976395,8.91255734,196.27,196.23,3.80896011]
[1755886976598,8.91255734,196.27,196.24,3.80896011]
[1755886976917,0.31,196.26,196.21,0.03]
[1755886977116,0.31,196.26,196.22,3.81036933]
[1755886977411,0.31,196.26,196.23,3.81036933]
[1755886977589,0.31,196.26,196.24,3.81036933]
[1755886977792,13.59559401,196.28,196.21,0.03]
[1755886977993,0.31,196.25,196.22,3.810601]
[1755886978313,13.87991715,196.22,196.21,0.03]
[1755886978513,22.48247449,196.22,196.21,0.03]
[1755886978678,13.59559401,196.21,196.12,0.03]
[1755886979003,8.60255734,196.15,196.13,3.80891434]
[1755886979188,8.60255734,196.15,196.14,3.80891434]
[1755886979504,51.84255734,196.17,196.12,0.03]
[1755886979679,51.84255734,196.17,196.13,3.80611494]
[1755886979887,51.84255734,196.17,196.14,3.80611494]
[1755886980090,51.84255734,196.17,196.12,0.73]
[1755886980395,43.24,196.17,196.13,3.80593323]
[1755886980576,51.84255734,196.17,196.14,3.80616346]
[1755886980777,51.84255734,196.17,196.12,8.63255734]
[1755886980996,51.84255734,196.17,196.13,3.80616135]
[1755886981200,51.84255734,196.17,196.12,9.33255734]
[1755886981397,51.84255734,196.17,196.13,3.80643424]
[1755886981706,51.84255734,196.17,196.14,3.80643424]
[1755886981908,51.84255734,196.17,196.12,8.63255734]
[1755886982112,8.60255734,196.13,196.12,0.03]
[1755886982294,22.19815135,196.13,196.12,0.03]
[1755886982493,13.84559401,196.13,196.12,0.03]
[1755886982689,8.60255734,196.14,196.12,0.03]
[1755886982895,2.65075783,196.16,196.12,0.03]
[1755886982896,8.60255734,196.15,196.12,0.03]
[1755886983111,2.65075783,196.16,196.13,0.7]
[1755886983413,43.16,196.18,196.12,0.03]
[1755886983718,8.60255734,196.17,196.12,0.03]
[1755886983898,8.60255734,196.15,196.12,0.03]
[1755886984302,13.59559401,196.17,196.12,0.03]
[1755886984497,13.59559401,196.17,196.12,0.73]
[1755886984811,13.84559401,196.19,196.12,9.33255734]
[1755886985017,13.59559401,196.16,196.12,9.33255734]
[1755886985217,22.44815135,196.16,196.12,0.03]
[1755886985390,13.59559401,196.17,196.12,0.03]
[1755886985596,8.60255734,196.16,196.12,0.03]
[1755886985790,8.60255734,196.13,196.12,0.03]
[1755886986195,13.59559401,196.14,196.12,0.03]
[1755886986405,22.73247449,196.13,196.12,0.03]
[1755886987409,48.73247449,196.13,196.12,0.03]
[1755886988204,40.12991715,196.13,196.12,0.03]
[1755886988403,91.83247449,196.13,196.12,0.03]
[1755886988605,65.83247449,196.13,196.12,0.03]
[1755886988805,26.0,196.11,196.1,0.03]
[1755886989004,22.48247449,196.11,196.1,0.03]
[1755886989402,31.33503249,196.11,196.1,0.03]
[1755886989617,22.73247515,196.11,196.1,0.03]
[1755886989803,31.33503249,196.11,196.1,0.03]
[1755886990194,65.77247449,196.11,196.1,0.03]
[1755886990398,74.37503149,196.11,196.1,0.03]
[1755886991932,39.87991715,196.08,196.07,0.87160764]
[1755886992099,91.52247449,196.08,196.07,0.87160764]
[1755886992299,91.77247449,196.08,196.07,0.87160764]
[1755886992995,82.89991715,196.08,196.07,0.87160764]
[1755886993205,13.87991715,196.08,196.07,0.87160764]
[1755886993404,56.61559401,196.08,196.07,0.87160764]
[1755886993608,56.59559401,196.08,196.07,0.87160764]
[1755886993822,43.0,196.08,196.07,1.57160764]
[1755886994619,42.98,196.08,196.07,1.57160764]
[1755886995414,42.98,196.08,196.07,0.87160764]
[1755886995718,42.98,196.08,196.07,1.57160764]
[1755886995899,42.98,196.08,196.07,0.87160764]
[1755886997105,8.60255734,196.09,196.07,0.87160764]
[1755886997338,42.9,196.08,196.07,0.87160764]
[1755886997522,2.65800399,196.17,196.08,0.7]
[1755886997836,13.59559401,196.14,196.1,8.60255734]
[1755886998022,42.88,196.13,196.11,0.7]
[1755886998212,42.88,196.13,196.12,0.7]
[1755886998839,8.60255734,196.16,196.12,0.7]
[1755886999013,42.86,196.15,196.13,9.30255734]
[1755886999341,13.59559401,196.18,196.14,0.7]
[1755886999650,42.84,196.17,196.15,0.7]
[1755887000308,22.44815135,196.16,196.08,0.7]
[1755887000633,22.19815135,196.13,196.08,9.30255734]
[1755887000834,51.42255734,196.12,196.09,0.7]
[1755887001142,42.82,196.12,196.09,0.7]
[1755887001518,42.82,196.12,196.1,0.7]
[1755887001718,42.82,196.12,196.11,0.7]
[1755887001934,42.82,196.12,196.08,0.7]
[1755887002127,51.42255734,196.12,196.08,0.7]
[1755887002320,42.82,196.12,196.09,0.7]
[1755887002633,42.82,196.11,196.1,0.7]
[1755887002840,8.60255734,196.16,196.11,0.7]
[1755887003012,56.43559401,196.15,196.12,0.7]
[1755887003423,65.03815135,196.15,196.09,9.30255734]
[1755887003733,42.84,196.14,196.1,9.30255734]
[1755887003911,42.82,196.13,196.11,0.7]
[1755887004110,42.82,196.13,196.12,9.30255734]
[1755887004339,42.82,196.14,196.12,9.30255734]
[1755887004537,42.82,196.14,196.13,9.30255734]
[1755887005517,42.82,196.14,196.13,0.7]
[1755887005730,42.82,196.14,196.1,8.60255734]
[1755887005933,42.82,196.14,196.11,0.7]
[1755887006731,8.60255734,196.12,196.08,0.7]
[1755887006928,42.76,196.11,196.08,0.69]
[1755887007719,42.76,196.11,196.09,9.29255734]
[1755887007922,42.76,196.11,196.1,0.69]
[1755887008147,42.76,196.11,196.07,9.47416498]
[1755887008345,42.76,196.11,196.07,10.16416498]
[1755887008649,42.76,196.11,196.07,0.87160764]
[1755887008831,42.76,196.11,196.08,0.69]
[1755887009548,42.76,196.11,196.09,0.69]
[1755887009847,42.76,196.11,196.07,0.87160764]
[1755887010225,8.60255734,196.08,196.07,0.87160764]
[1755887010441,51.34255734,196.08,196.07,0.87160764]
[1755887010624,26.0,196.14,196.07,1.56160764]
[1755887010833,8.60255734,196.11,196.07,1.56160764]
[1755887011152,42.72,196.1,196.07,0.87160764]
[1755887011452,42.72,196.1,196.07,1.56160764]
[1755887011650,42.72,196.1,196.07,10.16416498]
[1755887011829,42.72,196.1,196.07,0.87160764]
[1755887012035,51.32255734,196.1,196.07,0.87160764]
[1755887012531,42.72,196.1,196.07,1.56160764]
[1755887012757,42.72,196.1,196.08,9.29255734]
[1755887013049,8.66255734,196.15,196.09,9.29255734]
[1755887013254,42.72,196.14,196.1,8.60255734]
[1755887013465,42.72,196.14,196.09,9.29255734]
[1755887013626,42.72,196.14,196.07,0.87160764]
[1755887013627,8.60255734,196.11,196.07,0.87160764]
[1755887013826,42.7,196.11,196.07,0.87160764]
[1755887014031,42.7,196.11,196.07,10.16416498]
[1755887014245,42.7,196.12,196.1,8.60255734]
[1755887014455,42.76,196.12,196.11,0.69]
[1755887014654,0.06,196.1,196.09,8.60255734]
[1755887014960,0.06,196.1,196.09,9.29255734]
[1755887016428,0.06,196.1,196.09,0.69]
[1755887016635,0.06,196.1,196.09,9.29255734]
[1755887017452,0.06,196.1,196.09,0.69]
[1755887017966,0.06,196.1,196.09,9.29255734]
[1755887018634,0.06,196.1,196.09,0.69]
[1755887018840,0.06,196.1,196.07,1.56160764]
[1755887019036,0.06,196.1,196.09,8.60255734]
[1755887019253,0.06,196.1,196.08,0.69]
[1755887019454,0.06,196.1,196.09,8.60255734]
[1755887019673,0.06,196.1,196.07,0.87160764]
[1755887019849,0.06,196.1,196.09,8.60255734]
[1755887020159,0.06,196.1,196.08,8.60255734]
[1755887020472,0.06,196.1,196.07,0.87160764]
[1755887021365,0.06,196.1,196.07,9.47416498]
[1755887021871,0.06,196.1,196.08,9.29255734]
[1755887022245,0.06,196.1,196.09,9.29255734]
[1755887022570,0.06,196.1,196.07,9.47416498]
[1755887022769,0.06,196.1,196.07,1.56160764]
[1755887022992,0.06,196.1,196.07,0.87160764]
[1755887023156,8.60255734,196.08,196.07,0.87160764]
[1755887023555,8.60255734,196.09,196.07,0.87160764]
[1755887024756,8.60255734,196.08,196.07,0.87160764]
[1755887024957,22.73247449,196.08,196.07,0.87160764]
[1755887025275,14.12991715,196.08,196.07,0.87160764]
[1755887025456,22.73247449,196.08,196.07,0.87160764]
[1755887025650,14.12991715,196.08,196.07,0.87160764]
[1755887025960,22.73247449,196.08,196.07,0.87160764]
[1755887027557,26.8813578,196.08,196.07,0.87160764]
[1755887028365,30.61963976,196.08,196.07,0.87160764]
[1755887028570,73.27963976,196.08,196.07,0.87160764]
[1755887029387,64.67708242,196.08,196.07,0.87160764]
[1755887029564,73.27963976,196.08,196.07,0.87160764]
[1755887029761,73.2774204,196.08,196.07,0.87160764]
[1755887030165,64.67429377,196.08,196.07,0.87160764]
[1755887030365,73.31487608,196.08,196.07,0.87160764]
[1755887030673,0.28432314,196.03,195.97,0.69]
[1755887030874,0.28432314,196.03,195.95,0.69]
[1755887030875,8.60255734,195.99,195.95,0.69]
[1755887031065,8.60255734,195.99,195.96,0.69]
[1755887031066,42.84,195.98,195.96,0.69]
[1755887031381,22.19815135,195.97,195.78,10.0]
[1755887031582,8.60255734,195.93,195.79,0.69]
[1755887031884,13.59559401,195.95,195.91,8.60255734]
[1755887032098,65.03815135,195.95,195.92,0.69]
[1755887032269,8.60255734,195.94,195.89,9.29255734]
[1755887032597,56.43559401,195.95,195.9,0.69]
[1755887032772,42.84,195.95,195.91,0.69]
[1755887032972,13.87991715,196.0,195.92,0.69]
[1755887033187,13.59559401,195.94,195.9,0.69]
[1755887033369,43.27,195.99,195.91,0.69]
[1755887033370,43.06,195.93,195.91,0.69]
[1755887033567,43.08,195.94,195.91,0.69]
[1755887034173,43.06,195.95,195.91,0.69]
[1755887034683,43.06,195.95,195.93,8.60255734]
[1755887034891,43.06,195.95,195.94,0.69]
[1755887035088,13.73775558,196.0,195.94,0.69]
[1755887035393,22.19815135,195.98,195.95,0.69]
[1755887035596,43.1,195.99,195.96,0.69]
[1755887035769,26.0,196.01,195.97,0.69]
[1755887035770,22.19815135,196.0,195.97,0.69]
[1755887035971,43.1,195.99,195.98,0.69]
[1755887036289,43.14,195.99,195.97,8.60255734]
[1755887036583,43.14,195.99,195.87,26.0]
[1755887036761,43.14,195.99,195.88,0.69]
[1755887037285,43.16,195.99,195.97,8.60255734]
[1755887037598,51.76255734,195.99,195.93,0.67]
[1755887037785,22.19815135,195.98,195.91,0.67]
[1755887037967,13.59559401,195.98,195.93,8.60255734]
[1755887038375,22.19815135,195.98,195.94,0.67]
[1755887039075,13.59559401,195.98,195.94,0.67]
[1755887039680,22.19815135,195.98,195.94,0.67]
[1755887039975,13.59559401,195.98,195.95,0.67]
[1755887040172,43.16,195.99,195.95,8.60255734]
[1755887040371,2.64914981,196.02,195.96,0.67]
[1755887040582,43.06,195.99,195.96,0.67]
[1755887040787,43.06,195.99,195.91,8.60255734]
[1755887040788,43.06,195.99,195.97,9.27255734]
[1755887040972,11.25170715,196.02,195.97,9.27255734]
[1755887041293,51.64255734,196.01,195.96,8.60255734]
[1755887041478,51.64255734,196.01,195.96,9.27255734]
[1755887041679,43.04,196.01,195.97,9.27255734]
[1755887041991,43.04,196.01,195.95,0.67]
[1755887042195,51.64255734,196.01,195.96,8.60255734]
[1755887042395,43.04,196.01,195.96,9.27255734]
[1755887042592,43.04,196.01,195.97,0.67]
[1755887042786,43.1,196.0,195.98,9.27255734]
[1755887042983,43.1,196.0,195.98,0.67]
[1755887043185,2.64914981,196.02,195.91,8.60255734]
[1755887043390,39.59559401,196.04,195.92,0.67]
[1755887043701,9.522558,196.09,196.02,8.60255734]
[1755887043992,13.59559401,196.08,196.04,8.60255734]
[1755887044192,56.65559401,196.08,196.04,8.60255734]
[1755887044392,8.60255734,196.06,195.99,0.67]
[1755887044693,13.59559401,196.07,195.99,0.67]
[1755887044875,13.59559401,196.07,196.03,8.60255734]
[1755887045298,13.59559401,196.07,196.01,0.67]
[1755887045299,13.84559401,196.07,196.01,0.67]
[1755887045517,8.60255734,196.06,195.93,26.0]
[1755887045794,22.19815135,196.02,195.97,8.60255734]
[1755887046095,22.19815135,196.02,195.94,0.67]
[1755887046096,43.06,196.01,195.94,0.67]
[1755887046287,43.06,196.01,195.98,0.67]
[1755887046494,43.06,196.01,196.0,8.60255734]
[1755887046671,43.06,196.01,196.0,0.67]
[1755887046866,43.06,196.01,195.99,8.60255734]
[1755887047070,43.06,196.01,195.91,8.60255734]
[1755887047071,43.06,196.01,196.0,9.27255734]
[1755887047292,43.06,196.01,196.0,0.67]
[1755887047475,43.02,196.02,196.0,9.27255734]
[1755887047675,43.02,196.02,196.01,8.60255734]
[1755887047873,13.59559401,196.08,196.01,0.67]
[1755887048196,13.59559401,196.06,195.99,0.67]
[1755887048378,8.60255734,196.05,195.99,0.67]
[1755887048577,13.59559401,196.06,196.02,8.60255734]
[1755887048984,13.59559401,196.06,196.01,8.60255734]
[1755887049183,13.59559401,196.06,196.0,0.67]
[1755887049792,8.60255734,196.05,196.0,0.67]
[1755887050171,13.59559401,196.06,196.0,0.67]
[1755887050377,13.59559401,196.08,196.01,0.67]
[1755887050572,13.59559401,196.06,196.01,0.67]
[1755887050779,13.59559401,196.06,195.98,0.67]
[1755887051085,43.2,196.07,195.98,0.67]
[1755887051086,43.22,196.05,195.98,0.67]
[1755887051286,13.59559401,196.04,195.96,0.67]
[1755887051596,8.60255734,196.0,195.93,0.67]
[1755887051784,0.25,196.03,195.91,0.03]
[1755887051785,43.22,195.99,195.94,0.67]
[1755887052000,43.26,195.99,195.95,0.67]
[1755887052176,43.26,195.99,195.96,8.60255734]
[1755887052704,2.8997769,196.08,195.98,8.60255734]
[1755887052926,56.85559401,196.07,196.02,8.60255734]
[1755887053079,43.24,196.06,196.04,8.60255734]
[1755887053282,43.24,196.06,196.05,8.60255734]
[1755887053599,43.24,196.06,196.05,9.27255734]
[1755887053814,0.06,196.1,196.05,9.27255734]
[1755887053984,43.3,196.1,196.06,0.67]
[1755887054184,43.3,196.1,196.08,8.60255734]
[1755887054420,0.14216157,196.07,195.95,0.67]
[1755887054621,8.60255734,196.04,195.98,8.60255734]
[1755887054901,0.53432314,196.04,195.91,0.03]
[1755887055235,22.19815135,196.0,195.94,8.60255734]
[1755887055512,43.22,195.99,195.94,8.60255734]
[1755887055807,43.22,195.99,195.96,8.60255734]
[1755887056116,13.59559401,196.0,195.91,0.03]
[1755887056117,43.22,196.0,195.97,0.67]
[1755887056316,43.22,196.0,195.99,8.60255734]
[1755887056681,13.59559401,196.04,195.98,0.67]
[1755887056904,51.78255734,196.03,195.98,8.60255734]
[1755887057104,51.78255734,196.03,195.96,0.67]
[1755887057315,51.78255734,196.03,195.98,8.60255734]
[1755887057626,43.18,196.03,195.96,0.67]
[1755887057828,43.18,196.03,195.98,8.60255734]
[1755887058127,51.78255734,196.03,195.98,8.60255734]
[1755887058332,51.78255734,196.03,195.96,0.67]
[1755887058525,51.78255734,196.03,195.98,8.60255734]
[1755887058702,52.03255734,196.03,195.98,8.60255734]
[1755887058899,43.43,196.03,195.96,0.67]
[1755887059130,0.31,196.12,196.02,8.60255734]
[1755887059429,22.19815135,196.08,196.0,0.67]
[1755887059627,8.60255734,196.07,196.0,0.67]
[1755887059821,13.59559401,196.08,196.02,8.60255734]
[1755887060026,13.65559401,196.1,196.06,8.60255734]
[1755887060222,51.93255734,196.09,196.0,0.67]
[1755887060428,51.93255734,196.09,195.96,26.0]
[1755887060429,43.08,196.09,196.02,0.67]
[1755887060609,43.08,196.09,196.06,8.60255734]
[1755887060932,13.59559401,196.07,195.91,11.372006]
[1755887061130,0.25,196.07,196.0,8.60255734]
[1755887061341,22.19815135,196.05,196.0,8.60255734]
[1755887061513,13.59559401,196.05,196.01,8.60255734]
[1755887061708,43.04,196.06,196.02,8.60255734]
[1755887062131,8.60255734,196.07,196.02,8.60255734]
[1755887062436,13.59559401,196.08,196.03,8.60255734]
[1755887062437,43.04,196.06,196.03,8.60255734]
[1755887062612,43.04,196.05,196.03,8.60255734]
[1755887062937,43.04,196.05,196.01,0.67]
[1755887063534,43.04,196.05,196.0,8.60255734]
[1755887063535,13.59559401,196.04,196.0,8.60255734]
[1755887063714,43.02,196.03,196.02,0.67]
[1755887064109,43.02,196.03,196.0,0.67]
[1755887064325,43.02,196.03,196.0,8.60255734]
[1755887064531,43.02,196.03,196.01,8.60255734]
[1755887064912,0.59432314,196.1,196.02,8.60255734]
[1755887065139,65.17815135,196.09,196.03,8.60255734]
[1755887065341,13.59559401,196.07,196.03,8.60255734]
[1755887065644,42.96,196.06,196.03,8.60255734]
[1755887066439,42.96,196.05,196.03,8.60255734]
[1755887067025,42.96,196.05,196.02,8.60255734]
[1755887067646,42.96,196.05,196.03,8.60255734]
[1755887067936,39.65559401,196.1,196.04,8.60255734]
[1755887067937,8.60255734,196.09,196.04,8.60255734]
[1755887068146,42.9,196.08,196.05,8.60255734]
[1755887068437,42.9,196.08,196.02,0.65]
[1755887068647,8.66255734,196.1,196.06,8.60255734]
[1755887068648,0.06,196.1,196.06,8.60255734]
[1755887068837,13.65559401,196.1,196.08,8.60255734]
[1755887069015,42.88,196.09,196.07,8.60255734]
[1755887070229,13.65559401,196.1,195.97,26.0]
[1755887070230,0.06,196.1,196.08,9.25255734]
[1755887070428,0.06,196.1,196.09,9.25255734]
[1755887071138,0.06,196.1,196.09,8.60255734]
[1755887071340,0.06,196.1,196.09,9.25255734]
[1755887072044,0.06,196.1,196.03,26.0]
[1755887072249,0.06,196.1,196.07,8.60255734]
[1755887072545,0.06,196.1,196.09,8.60255734]
[1755887073253,0.06,196.1,196.07,8.60255734]
[1755887073614,0.06,196.1,196.04,0.65]
[1755887073812,8.60255734,196.08,196.03,8.60255734]
[1755887074036,8.60255734,196.09,196.03,8.60255734]
[1755887074249,13.59559401,196.07,196.02,8.60255734]
[1755887074412,13.59559401,196.07,196.0,0.65]
[1755887074614,0.25,196.07,196.01,8.60255734]
[1755887074915,8.60255734,196.08,196.03,8.60255734]
[1755887075116,42.8,196.07,196.04,9.25255734]
[1755887075333,42.8,196.07,196.05,9.25255734]
[1755887075569,0.06,196.1,196.05,0.65]
[1755887075715,42.78,196.09,196.0,0.65]
[1755887075921,8.60255734,196.08,196.03,8.60255734]
[1755887076238,13.59559401,196.08,196.03,8.60255734]
[1755887076411,22.44815135,196.08,196.02,8.60255734]
[1755887076617,0.06,196.1,196.05,8.60255734]
[1755887076844,0.06,196.1,196.07,8.60255734]
[1755887077135,42.82,196.09,196.06,8.60255734]
[1755887077328,42.82,196.09,196.08,8.60255734]
[1755887077843,42.88,196.1,196.08,9.25255734]
[1755887078011,42.88,196.1,195.99,26.0]
[1755887078213,42.88,196.1,196.08,8.60255734]
[1755887078428,42.88,196.1,196.05,0.65]
[1755887078627,42.88,196.1,196.06,0.65]
[1755887079027,8.66255734,196.1,196.04,0.65]
[1755887079345,42.86,196.09,196.05,8.60255734]
[1755887079547,42.86,196.09,196.06,9.25255734]
[1755887079723,42.86,196.09,196.07,9.25255734]
[1755887080043,42.84,196.09,196.07,9.25255734]
[1755887080341,42.84,196.09,196.07,8.60255734]
[1755887080742,0.06,196.1,196.08,8.60255734]
[1755887080936,0.06,196.1,196.09,8.60255734]
[1755887081132,0.06,196.1,196.09,9.25255734]
[1755887081133,42.88,196.1,196.09,9.25255734]
[1755887081339,42.88,196.1,196.06,0.65]
[1755887081635,42.88,196.1,195.98,26.28432314]
[1755887081636,42.88,196.1,196.07,8.60255734]
[1755887082233,42.88,196.1,196.06,0.65]
[1755887082446,42.88,196.1,196.07,8.60255734]
[1755887082960,43.13,196.1,196.07,8.60255734]
[1755887083135,42.88,196.1,196.07,8.60255734]
[1755887083336,42.88,196.1,196.06,8.60255734]
[1755887083661,42.88,196.1,196.06,9.25255734]
[1755887083833,42.88,196.1,196.07,0.65]
[1755887083834,0.06,196.1,196.07,0.65]
[1755887084030,42.72,196.09,196.02,0.65]
[1755887084244,42.72,196.09,196.03,0.65]
[1755887084562,42.72,196.09,196.06,8.60255734]
[1755887085244,42.72,196.09,196.07,0.03]
[1755887085844,42.97,196.09,196.07,0.03]
[1755887086353,8.60255734,196.08,196.07,0.03]
[1755887086559,51.57255734,196.09,196.07,0.03]
[1755887087533,42.72,196.09,196.07,0.03]
[1755887087742,51.32255734,196.09,196.07,0.03]
[1755887088374,22.44815135,196.08,196.07,0.03]
[1755887089255,13.84559401,196.08,196.07,0.03]
[1755887089442,22.44815135,196.08,196.07,0.03]
[1755887089842,22.19815135,196.08,196.07,0.03]
[1755887090337,22.44815135,196.08,196.07,0.03]
[1755887091155,25.09658592,196.08,196.07,0.03]
[1755887091457,67.40658592,196.08,196.07,0.03]
[1755887091759,24.84658592,196.08,196.07,0.03]
[1755887092062,59.05402858,196.08,196.07,0.03]
[1755887092373,67.40658592,196.08,196.07,0.03]
[1755887092585,12.06,196.1,196.07,0.68]
[1755887092768,42.54,196.08,196.07,0.68]
[1755887093072,42.54,196.08,196.07,0.03]
[1755887093237,64.98815135,196.08,196.07,0.03]
[1755887093442,64.73815135,196.08,196.07,0.03]
[1755887093868,56.13559401,196.08,196.07,0.03]
[1755887094238,64.73815135,196.08,196.07,0.03]
[1755887094663,56.13559401,196.08,196.07,0.03]
[1755887097670,64.73815135,196.08,196.07,0.03]
[1755887099992,65.27247449,196.08,196.07,0.03]
[1755887100470,56.66991715,196.08,196.07,0.03]
[1755887100678,65.27247449,196.08,196.07,0.03]
[1755887101209,70.90196796,196.08,196.07,0.03]
[1755887101709,70.90173945,196.08,196.07,0.03]
[1755887101919,73.37787153,196.08,196.07,0.03]
[1755887102090,69.62502822,196.08,196.07,0.03]
[1755887102282,73.37715755,196.08,196.07,0.03]
[1755887102697,31.01715755,196.08,196.07,0.03]
[1755887102998,56.09775558,196.08,196.07,0.03]
[1755887103300,13.59559401,196.08,196.07,0.03]
[1755887103500,55.93559401,196.08,196.07,0.68]
[1755887103816,0.06,196.09,196.07,9.28255734]
[1755887104110,42.34,196.08,196.07,0.03]
[1755887104313,0.06,196.09,196.07,8.63255734]
[1755887104610,10.62,196.1,196.09,8.60255734]
[1755887104909,10.62,196.1,196.09,13.06517535]
[1755887105088,9.48,196.1,196.09,4.46261801]
[1755887105288,0.06,196.12,196.09,39.06517535]
[1755887105487,0.06,196.19,196.11,8.60255734]
[1755887105712,0.06,196.19,196.14,8.60255734]
[1755887105915,0.06,196.19,196.18,8.60255734]
[1755887106218,0.06,196.19,196.18,12.41517535]
[1755887106793,0.06,196.19,196.18,3.81261801]
[1755887107002,0.06,196.19,196.18,12.41517535]
[1755887107202,0.06,196.19,196.18,3.81261801]
[1755887107404,0.06,196.19,196.18,12.41517535]
[1755887108109,0.06,196.19,196.18,12.40440869]
[1755887108283,0.06,196.19,196.18,3.79958392]
[1755887108488,0.06,196.19,196.18,12.40214126]
[1755887110314,0.06,196.19,196.18,3.79958392]
[1755887110518,0.06,196.19,196.18,8.60255734]
[1755887110809,0.06,196.19,196.18,12.39652085]
[1755887111118,0.06,196.19,196.09,26.0]
[1755887111292,0.06,196.19,196.18,8.60255734]
[1755887112618,0.06,196.19,196.09,4.13297851]
[1755887112807,0.06,196.19,196.13,26.0]
[1755887113147,0.06,196.19,196.18,8.60255734]
[1755887113827,0.06,196.19,196.09,9.01502528]
[1755887114041,0.06,196.19,196.18,8.60255734]
[1755887114323,0.06,196.19,196.18,12.39310042]
[1755887114502,0.06,196.23,196.21,26.0]
[1755887114694,0.06,196.23,196.22,8.60255734]
[1755887114900,0.06,196.23,196.22,12.39036029]
[1755887115206,0.2,196.27,196.22,12.39036029]
[1755887115207,0.2,196.27,196.25,26.0]
[1755887115397,0.2,196.27,196.26,8.60255734]
[1755887115599,0.2,196.27,196.26,12.38616742]
[1755887116317,0.2,196.27,196.26,8.60255734]
[1755887116819,0.2,196.3,196.26,38.38240215]
[1755887117024,0.2,196.3,196.26,26.0]
[1755887117227,0.2,196.3,196.29,8.60255734]
[1755887117415,0.2,196.3,196.29,17.20511468]
[1755887117605,0.06,196.33,196.32,26.0]
[1755887118117,0.06,196.33,196.32,34.60255734]
[1755887118504,0.2,196.39,196.32,34.60255734]
[1755887118724,0.2,196.39,196.38,26.0]
[1755887118908,0.2,196.39,196.38,34.60255734]
[1755887119404,0.2,196.39,196.38,8.60255734]
[1755887120647,0.06,196.42,196.38,8.60255734]
[1755887120832,0.06,196.42,196.41,34.60255734]
[1755887121411,0.06,196.42,196.41,43.20511468]
[1755887121628,0.06,196.42,196.41,34.60255734]
[1755887123233,0.06,196.42,196.41,43.20511468]
[1755887124117,0.06,196.42,196.41,43.48943782]
[1755887124434,0.06,196.45,196.41,43.48943782]
[1755887124636,0.06,196.53,196.52,13.87991715]
[1755887124854,0.06,196.57,196.56,0.28432314]
[1755887125009,0.06,196.57,196.56,17.20511468]
[1755887125305,0.06,196.57,196.56,8.60255734]
[1755887127041,0.72,196.57,196.56,8.60255734]
[1755887127218,0.72,196.57,196.52,26.0]
[1755887127419,0.72,196.57,196.56,8.60255734]
[1755887128220,0.72,196.57,196.55,8.60255734]
[1755887128422,0.72,196.57,196.56,8.60255734]
[1755887128629,0.06,196.57,196.56,8.60255734]
[1755887128811,0.72,196.57,196.56,8.60255734]
[1755887129133,0.72,196.57,196.53,26.0]
[1755887129315,0.72,196.57,196.54,8.60255734]
[1755887129831,0.66,196.56,196.54,8.60255734]
[1755887130018,0.66,196.55,196.54,8.60255734]
[1755887130631,0.66,196.55,196.37,12.038165]